fUST/lending_fUST_20260211
["ID","MTS","AMOUNT","RATE_DAILY","PERIOD"]
[405018749,1770748042746,-500.0,0.00039395,7]
[405018750,1770748042768,-500.0,0.00039395,15]
[405018751,1770748042793,-500.0,0.00039395,7]
[405018752,1770748042817,-500.0,0.00039395,7]
[405018753,1770748042839,-564.10421044,0.00039395,7]
[405018754,1770748042861,-500.0,0.00039395,7]
[405018755,1770748042882,-500.0,0.00039395,7]
[405018756,1770748042905,-500.0,0.00039395,7]
[405018757,1770748042926,-500.0,0.00039395,7]
[405018758,1770748042951,-500.0,0.00039395,7]
[405018759,1770748042970,-1396.6356176,0.000396,2]
[405018760,1770748042990,-711.0,0.00039678,11]
[405018761,1770748043011,-349.0,0.00039725,14]
[405018762,1770748043037,-422.83413357,0.00039725,14]
[405018763,1770748043059,-1759.69125583,0.00039774,2]
[405018764,1770748043080,-4220.75216174,0.000399,2]
[405018765,1770748043103,-581.14686057,0.00039989,31]
[405018766,1770748043125,-8565.99606724,0.0003999,2]
[405018767,1770748043149,-245.42,0.0003999,3]
[405018768,1770748043171,-736.28,0.0003999,3]
[405018769,1770748043195,-1824.44743296,0.0003999,3]
[405018770,1770748043221,-250.0,0.00039998,30]
[405018771,1770748043246,-250.0,0.00039998,30]
[405018772,1770748043269,-250.0,0.00039998,30]
[405018773,1770748043292,-250.0,0.00039998,30]
[405018774,1770748043314,-250.0,0.00039998,30]
[405018775,1770748043336,-250.0,0.00039998,30]
[405018776,1770748043362,-250.0,0.00039998,30]
[405018777,1770748043383,-250.0,0.00039998,30]
[405018778,1770748043404,-250.0,0.00039998,30]
[405018779,1770748043424,-250.0,0.00039998,30]
[405018780,1770748043446,-500.0,0.00039998,30]
[405018781,1770748043468,-250.0,0.00039998,30]
[405018782,1770748043489,-250.0,0.00039998,30]
[405018783,1770748043515,-151.0,0.00039998,30]
[405018784,1770748043536,-250.0,0.00039998,30]
[405018785,1770748043558,-496.71808003,0.00039998,30]
[405018786,1770748112483,4608.812297,0.00015,2]
[405018791,1770748145138,-1541.15008644,0.0002465,2]
[405018792,1770748145158,-10177.19351317,0.00033788,60]
[405018793,1770748145177,-107718.78766925,0.00035,2]
[405018794,1770748151110,-160.31336342,0.00035,2]
[405018795,1770748158940,1860.96422872,0.00025583,2]
[405018796,1770748159128,-3734.09180061,0.00025583,2]
[405018847,1770748232253,-400.0,0.00036,2]
[405018918,1770748238445,-300.67339322,0.00036,2]
[405018920,1770748238456,-390.054129,0.0003687,2]
[405018922,1770748238469,-450.27247778,0.00038,2]
[405018935,1770748239509,-4549.72752222,0.00038,2]
[405018936,1770748239519,-843.0,0.0003913,30]
[405018937,1770748239529,-159.42065073,0.0003924,2]
[405018938,1770748239539,-742.18218896,0.00039546,2]
[405018939,1770748239548,-3242.16588509,0.000396,2]
[405018955,1770748240244,4779.80180337,0.00024953,2]
[405018957,1770748240266,220.19819663,0.00024953,2]
[405018960,1770748240642,-773.0,0.000396,30]
[405018961,1770748240652,-3798.67694562,0.000399,2]
[405018962,1770748240662,-250.0,0.00039997,30]
[405018963,1770748240672,-250.0,0.00039997,30]
[405018965,1770748240682,-250.0,0.00039997,30]
[405018966,1770748240692,-250.0,0.00039997,30]
[405018967,1770748240702,-250.0,0.00039997,30]
[405018968,1770748240711,-250.0,0.00039997,30]
[405018969,1770748240721,-151.0,0.00039997,30]
[405018970,1770748240730,-234.05177034,0.00039997,30]
[405018971,1770748240739,-156.587,0.00039997,30]
[405018972,1770748240748,-250.0,0.00039997,30]
[405018973,1770748240768,-250.0,0.00039997,30]
[405018974,1770748240779,-162.380719,0.00039997,30]
[405018975,1770748240789,-250.0,0.00039997,30]
[405018976,1770748240799,-168.3888056,0.00039997,30]
[405018977,1770748240809,-250.0,0.00039997,30]
[405018978,1770748240819,-272.77883727,0.00039997,30]
[405018979,1770748240830,-174.61919141,0.00039997,30]
[405018980,1770748240840,-250.0,0.00039997,30]
[405018981,1770748240850,-250.0,0.00039997,30]
[405018982,1770748240861,-250.0,0.00039997,30]
[405018983,1770748240871,-250.0,0.00039997,30]
[405018984,1770748240881,-217.86016673,0.00039997,30]
[405018985,1770748240891,-250.0,0.00039997,30]
[405018986,1770748240901,-250.0,0.00039997,30]
[405018987,1770748240911,-250.0,0.00039997,30]
[405018988,1770748240921,-250.0,0.00039997,30]
[405018989,1770748240931,-475.22047498,0.00039997,31]
[405018990,1770748240941,-250.0,0.00039997,30]
[405018991,1770748240951,-250.0,0.00039997,30]
[405018992,1770748240961,-500.0,0.00039997,30]
[405018993,1770748240972,-250.0,0.00039997,30]
[405018994,1770748240982,-250.0,0.00039997,30]
[405018995,1770748240993,-500.0,0.00039997,30]
[405018996,1770748241003,-250.0,0.00039997,30]
[405018997,1770748241012,-500.0,0.00039997,30]
[405018998,1770748241022,-250.0,0.00039997,30]
[405018999,1770748241032,-500.0,0.00039997,30]
[405019000,1770748241042,-500.0,0.00039997,30]
[405019001,1770748241052,-250.0,0.00039997,30]
[405019002,1770748241061,-500.0,0.00039997,30]
[405019003,1770748241071,-250.0,0.00039997,30]
[405019004,1770748241081,-250.0,0.00039997,30]
[405019005,1770748241090,-500.0,0.00039997,30]
[405019006,1770748241100,-288.35430557,0.00039997,30]
[405019007,1770748241110,-250.0,0.00039997,30]
[405019008,1770748241120,-250.0,0.00039997,30]
[405019009,1770748241129,-500.0,0.00039997,30]
[405019010,1770748241138,-250.0,0.00039997,30]
[405019011,1770748241148,-250.0,0.00039997,30]
[405019012,1770748241158,-500.0,0.00039997,30]
[405019013,1770748241168,-250.0,0.00039997,30]
[405019014,1770748241178,-250.0,0.00039997,30]
[405019015,1770748241187,-500.0,0.00039997,30]
[405019016,1770748241197,-250.0,0.00039997,30]
[405019017,1770748241207,-500.0,0.00039997,30]
[405019018,1770748241216,-250.0,0.00039997,30]
[405019019,1770748241226,-250.0,0.00039997,30]
[405019020,1770748241236,-500.0,0.00039997,30]
[405019021,1770748241246,-250.0,0.00039997,30]
[405019022,1770748241261,-250.0,0.00039997,30]
[405019023,1770748241271,-250.0,0.00039997,30]
[405019024,1770748241283,-500.0,0.00039997,30]
[405019025,1770748241293,-250.0,0.00039997,30]
[405019026,1770748241303,-250.0,0.00039997,30]
[405019027,1770748241312,-500.0,0.00039997,30]
[405019028,1770748241323,-250.0,0.00039997,30]
[405019029,1770748241332,-250.0,0.00039997,30]
[405019030,1770748241343,-500.0,0.00039997,30]
[405019031,1770748241352,-250.0,0.00039997,30]
[405019032,1770748241364,-250.0,0.00039997,30]
[405019033,1770748241374,-500.0,0.00039997,30]
[405019034,1770748241383,-250.0,0.00039997,30]
[405019035,1770748241393,-250.0,0.00039997,30]
[405019036,1770748241403,-500.0,0.00039997,30]
[405019037,1770748241412,-250.0,0.00039997,30]
[405019038,1770748241422,-500.0,0.00039997,30]
[405019039,1770748241432,-250.0,0.00039997,30]
[405019040,1770748241442,-500.0,0.00039997,30]
[405019041,1770748241452,-500.0,0.00039997,30]
[405019042,1770748241462,-3.28191997,0.00039998,30]
[405019043,1770748241471,-500.0,0.00039998,30]
[405019044,1770748241481,-500.0,0.00039998,30]
[405019045,1770748241491,-500.0,0.00039998,30]
[405019046,1770748241501,-235.28329016,0.00039998,30]
[405019047,1770748241514,-264.71670984,0.00039998,30]
[405019048,1770748241524,-500.0,0.00039998,30]
[405019049,1770748241533,-87906.14047447,0.0004,120]
[405019081,1770748244778,-37.44861127,0.00039997,30]
[405019082,1770748245415,-706.55138873,0.00039997,30]
[405019083,1770748245424,-1348.37824301,0.0004,120]
[405019084,1770748245435,-1613.662366,0.0004,120]
[405019085,1770748245469,-12095.90872,0.0004,120]
[405019087,1770748245480,-1028.85686,0.0004,120]
[405019110,1770748262851,3237.05672939,0.00024953,2]
[405019128,1770748340311,-161.63353578,0.00024703,2]
[405019129,1770748340324,-4838.36646422,0.00024703,2]
[405019130,1770748340333,-161.63353578,0.00024953,2]
[405019163,1770748657338,-249.35732485,0.00024456,2]
[405019174,1770748659233,-231.0086626,0.00024456,2]
[405019175,1770748663129,-499.99999994,0.00024456,2]
[405019186,1770748665806,-500.0,0.00024456,2]
[405019187,1770748667305,-430.99262353,0.00024456,2]
[405019188,1770748668954,-160.00565814,0.00024456,2]
[405019199,1770748671732,-311.99691409,0.00024456,2]
[405019201,1770748676134,-549.51467285,0.00024456,2]
[405019365,1770749158144,-156.37763762,0.00023969,2]
[405019367,1770749247094,-5000.0,0.00024326,2]
[405019368,1770749247113,-1200.0,0.00024572,2]
[405019369,1770749247133,-300.0,0.00024572,2]
[405019370,1770749247153,-300.0,0.00024573,2]
[405019371,1770749247173,-300.0,0.00024573,2]
[405019372,1770749247192,-300.0,0.00024573,2]
[405019373,1770749247213,-7950.07456594,0.00024762,2]
[405019374,1770749247233,-1000.0,0.000373,15]
[405019375,1770749247255,-168.0,0.00037679,2]
[405019376,1770749247275,-742.18218896,0.00037741,2]
[405019377,1770749247295,-168.0,0.0003783,2]
[405019378,1770749247315,-401.0,0.00038399,11]
[405019379,1770749247333,-162.0,0.00038717,11]
[405019380,1770749247352,-400.0,0.00038717,11]
[405019381,1770749247372,-250.0,0.000388,10]
[405019382,1770749247392,-250.0,0.000389,10]
[405019383,1770749247411,-712.0,0.00038904,11]
[405019384,1770749247430,-305.811149,0.00039,10]
[405019385,1770749247448,-745.0,0.00039134,30]
[405019386,1770749247467,-159.42065073,0.00039212,2]
[405019387,1770749247487,-398.480795,0.00039386,2]
[405019388,1770749247506,-712.0,0.00039675,11]
[405019389,1770749247526,-717.0,0.00039675,11]
[405019390,1770749247544,-401.0,0.00039679,11]
[405019391,1770749247564,-300.0,0.000399,30]
[405019392,1770749247586,-1319.76844189,0.000399,2]
[405019393,1770749247609,-500.0,0.00039989,7]
[405019394,1770749247629,-488.65323629,0.00039989,31]
[405019395,1770749247650,-500.0,0.00039989,7]
[405019396,1770749247671,-337.96323763,0.00039989,31]
[405019397,1770749247692,-500.0,0.00039989,31]
[405019398,1770749247712,-500.0,0.00039989,31]
[405019399,1770749247733,-507.12269005,0.00039989,7]
[405019400,1770749247755,-262.2625069,0.00039989,7]
[405019401,1770749247774,-500.0,0.00039989,31]
[405019402,1770749247794,-614.1062226,0.00039989,31]
[405019403,1770749247813,-488.44,0.0003999,3]
[405019404,1770749247831,-244.22,0.0003999,3]
[405019405,1770749247850,-732.66,0.0003999,3]
[405019406,1770749247868,-150.0,0.00039997,120]
[405019407,1770749247887,-500.0,0.00039997,30]
[405019408,1770749247909,-500.0,0.00039997,30]
[405019409,1770749247929,-500.0,0.00039997,30]
[405019410,1770749247949,-500.0,0.00039997,30]
[405019411,1770749247971,-500.0,0.00039997,30]
[405019412,1770749247993,-500.0,0.00039997,30]
[405019413,1770749248013,-569.2929659,0.00039997,30]
[405019414,1770749248122,-247.72818732,0.00039997,120]
[405019415,1770749248145,-406.8028024,0.00039999,31]
[405019416,1770749248166,-73259.13476668,0.0004,120]
[405019423,1770749345108,-5000.0,0.00024083,2]
[405019424,1770749357078,5000.0,0.00030137,120]
[405019425,1770749379048,122.48203108,0.00024953,2]
[405019426,1770749379069,2945.03745386,0.00024953,2]
[405019427,1770749379091,1932.48051506,0.00024953,2]
[405019429,1770749401664,1.58793108,0.00024953,2]
[405019430,1770749401684,3427.59194969,0.00024953,2]
[405019451,1770749432339,-1570.82011923,0.00024953,2]
[405019452,1770749432350,-742.18218896,0.00037726,2]
[405019453,1770749432361,-714.0,0.00039134,30]
[405019454,1770749432370,-159.42065073,0.0003922,2]
[405019455,1770749432380,-2000.0,0.00039841,21]
[405019456,1770749432390,-1821.36379108,0.000399,2]
[405019457,1770749432402,-364.59466729,0.000399,2]
[405019458,1770749432414,-1232.85079267,0.000399,2]
[405019459,1770749432424,-1154.79738668,0.000399,2]
[405019460,1770749432434,-150.0,0.00039999,120]
[405019461,1770749432444,-284.76196168,0.00039999,31]
[405019462,1770749432454,-234.9006914,0.00039999,31]
[405019463,1770749432464,-4896.67332557,0.0004,120]
[405019464,1770749432476,-7720.05036107,0.0004,120]
[405019465,1770749432487,-666.59041789,0.0004,120]
[405019466,1770749432502,-1429.60177525,0.0004,120]
[405019484,1770749438576,-1548.83918175,0.0004,120]
[405019486,1770749438588,-8493.50037524,0.0004,120]
[405019491,1770749438633,-76230.91124418,0.0004,120]
[405019694,1770749440771,-3e-08,0.0004,120]
[405019740,1770749441195,-12052.23604526,0.0004,120]
[405020104,1770749445165,-2478.15816945,0.00024953,2]
[405020195,1770749446062,-2521.84183055,0.00024953,2]
[405020197,1770749446076,-19791.50931789,0.0004,120]
[405020200,1770749446094,-45686.64885156,0.0004,120]
[405020265,1770749446807,-1317.84183055,0.0004,120]
[405020267,1770749446823,-45683.73802651,0.0004,120]
[405020568,1770749710010,500.0,0.00013699,2]
[405020569,1770749710058,500.0,0.00014247,2]
[405020571,1770749716843,500.0,0.00013273,2]
[405020572,1770749716981,760.45283244,0.00013821,2]
[405020573,1770749721741,522.00461846,0.00013273,2]
[405020591,1770750033919,499.99956582,0.000237,2]
[405020597,1770750041960,5000.0,0.000237,2]
[405020598,1770750063729,5000.0,0.000237,2]
[405020599,1770750068709,500.0,0.00013273,2]
[405020607,1770750086361,5000.0,0.000237,2]
[405020611,1770750108001,3679.95640333,0.000237,2]
[405020612,1770750136991,300.23,0.000237,2]
[405020613,1770750139598,-150.0,0.00024213,2]
[405020631,1770750342152,-150.0,0.00025201,2]
[405020632,1770750342175,-11.56702312,0.00027201,2]
[405020635,1770750439079,-254.28938425,0.00027201,2]
[405020636,1770750439099,-244.360378,0.00029594,2]
[405020637,1770750439118,-300.0,0.00029672,2]
[405020638,1770750439137,-300.0,0.00029672,2]
[405020639,1770750439156,-300.0,0.00029672,2]
[405020640,1770750439176,-496.0,0.00029672,2]
[405020641,1770750439196,-14.07223651,0.00029673,2]
[405020668,1770750555102,-1963.96278285,0.00024953,2]
[405020669,1770750555124,-7521.35592182,0.00025327,2]
[405020670,1770750555143,-4884.42242469,0.00029673,2]
[405020671,1770750555162,-1098.442971,0.00034073,2]
[405020672,1770750555182,-21193.5687726,0.00034416,2]
[405020700,1770750631723,-168.0,0.00037605,2]
[405020701,1770750631732,-1041.66666667,0.00037933,2]
[405020702,1770750631742,-465.06398672,0.00037945,2]
[405020703,1770750631934,-275.50508968,0.00037945,2]
[405020704,1770750631944,-160.0,0.00037946,2]
[405020705,1770750631953,-250.0,0.00038,10]
[405020706,1770750631962,-250.0,0.000381,10]
[405020708,1770750631972,-150.0,0.00038356,120]
[405020710,1770750631982,-150.0,0.00038493,120]
[405020712,1770750631994,-291.84419818,0.0003863,120]
[405020714,1770750632009,-252.23139488,0.00038796,2]
[405020716,1770750632018,-684.0,0.00038881,30]
[405020718,1770750632027,-160.5,0.00038881,30]
[405020720,1770750632038,-159.42065073,0.00039201,2]
[405020723,1770750632048,-190.55341358,0.00039286,2]
[405020725,1770750632057,-330.25150666,0.00039292,2]
[405020727,1770750632066,-187.42707129,0.000396,2]
[405020732,1770750632107,-140.5070791,0.000396,2]
[405021259,1770750637831,-901.07523169,0.000396,2]
[405021261,1770750637841,-656.0,0.000396,30]
[405021263,1770750637851,-359.04,0.0003999,3]
[405021265,1770750637861,-179.52,0.0003999,3]
[405021267,1770750637870,-538.57,0.0003999,3]
[405021269,1770750637881,-199.33337317,0.00039999,31]
[405021271,1770750637890,-6332.39014032,0.0004,120]
[405021410,1770750639876,-499.99956582,0.0004,120]
[405021807,1770750644065,-104.54044961,0.0004,120]
[405021809,1770750644078,-1057.94999992,0.0004,120]
[405021998,1770750645903,-390.52063617,0.0004,120]
[405022060,1770750646481,2339.33094398,0.00030137,120]
[405022063,1770750646502,2009.3783076,0.00030137,120]
[405022066,1770750646522,473.24912686,0.00030137,120]
[405022815,1770750654367,851.9688985,0.00030137,120]
[405022818,1770750654392,2080.9069575,0.00030137,120]
[405026484,1770750694583,475.274526,0.00030901,2]
[405028659,1770750717331,839.4871565,0.00025583,2]
[405028662,1770750717354,1787.83243325,0.00025583,2]
[405029633,1770750727391,-499.99956582,0.00025583,2]
[405030815,1770751550123,-732.50313977,0.00023969,2]
[405030823,1770751641080,-791.81566967,0.00023969,2]
[405030824,1770751641101,-150.0,0.00024213,2]
[405030825,1770751641138,-808.0,0.00024456,2]
[405030826,1770751641157,-166.66666668,0.00024974,2]
[405030827,1770751641178,-78.86331659,0.00026213,2]
[405030835,1770751699990,4779.80180337,0.000237,2]
[405030837,1770751709059,908.97827091,0.00017,2]
[405030856,1770751748336,-300.0,0.00023999,2]
[405030857,1770751748360,-18000.0,0.00024,2]
[405030858,1770751748380,-1541.15008644,0.0002465,2]
[405030859,1770751748409,-5000.0,0.00025,2]
[405030860,1770751748433,-3703.22208907,0.00025583,2]
[405030861,1770751748454,-420.0,0.00026026,2]
[405030862,1770751748475,-98.13668341,0.00026213,2]
[405030863,1770751748493,-150.0,0.0002739,2]
[405030864,1770751748516,-177.0,0.00028213,2]
[405030865,1770751748536,-300.0,0.00028223,2]
[405030866,1770751748555,-72571.36015187,0.0003,2]
[405030878,1770751751098,-47208.81811073,0.0003,2]
[405030879,1770751751119,-1326.0,0.00032603,3]
[405030880,1770751751149,-1200.0000001,0.00032604,2]
[405030881,1770751751177,-1164.57654961,0.00033,14]
[405030882,1770751751205,-500.0,0.00033787,7]
[405030883,1770751751234,-500.0,0.00033787,7]
[405030884,1770751751263,-500.0,0.00033787,7]
[405030885,1770751751292,-500.0,0.00033787,7]
[405030886,1770751751322,-500.0,0.00033787,7]
[405030887,1770751751353,-500.0,0.00033787,7]
[405030888,1770751751377,-500.0,0.00033787,7]
[405030889,1770751751403,-500.0,0.00033787,7]
[405030890,1770751751431,-500.0,0.00033787,7]
[405030891,1770751751466,-438.43762904,0.00033787,7]
[405030892,1770751751498,-500.0,0.00033787,7]
[405030893,1770751751523,-572.9056787,0.00033787,7]
[405030894,1770751751554,-384.04542727,0.00033787,7]
[405030895,1770751751580,-600.0,0.00033787,7]
[405030896,1770751751606,-500.0,0.00033787,7]
[405030897,1770751751633,-500.0,0.00033787,7]
[405030898,1770751751658,-500.0,0.00033787,7]
[405030899,1770751751680,-500.0,0.00033787,7]
[405030900,1770751751707,-500.0,0.00033787,7]
[405030901,1770751751732,-500.0,0.00033787,7]
[405030902,1770751751759,-500.0,0.00033787,7]
[405030903,1770751751784,-500.0,0.00033787,7]
[405030905,1770751751812,-500.0,0.00033787,7]
[405030906,1770751751836,-500.0,0.00033787,7]
[405030907,1770751751860,-500.0,0.00033787,7]
[405030908,1770751751886,-500.0,0.00033787,7]
[405030909,1770751751909,-500.0,0.00033787,7]
[405030910,1770751751934,-500.0,0.00033787,7]
[405030911,1770751751959,-500.0,0.00033787,7]
[405030912,1770751751988,-500.0,0.00033787,7]
[405030913,1770751752012,-504.41867769,0.00033787,7]
[405030914,1770751752037,-500.0,0.00033787,7]
[405030915,1770751752060,-500.0,0.00033787,7]
[405030916,1770751752085,-500.0,0.00033787,7]
[405030917,1770751752215,-500.0,0.00033787,7]
[405030918,1770751752242,-500.0,0.00033787,7]
[405030919,1770751752262,-500.0,0.00033787,7]
[405030920,1770751752281,-10177.19351317,0.00033788,60]
[405030921,1770751752300,-485.35,0.0003499,10]
[405030922,1770751752319,-100047.54775949,0.00035,2]
[405030923,1770751756130,-221.94,0.00024,2]
[405030924,1770751756150,-19046.8476556,0.00035,2]
[405030929,1770751757190,-2569.29424804,0.00035,2]
[405030943,1770751782011,4522.2859802,0.00035,2]
[405030944,1770751782030,2967.08209917,0.00035,2]
[405030945,1770751782049,1844.44935196,0.00035,2]
[405030986,1770751831882,-13499.37210128,0.00035,2]
[405030987,1770751831901,-527.80508354,0.00035,2]
[405030988,1770751831913,-517.4421378,0.00035,2]
[405031210,1770751840148,-3e-08,0.00035,2]
[405031211,1770751840160,-589.27331306,0.00035,2]
[405031569,1770751844430,-1247.77989098,0.00035,2]
[405031580,1770751844524,-2096.93184551,0.00035,2]
[405031583,1770751844546,-36.48637619,0.00035,2]
[405032330,1770751889544,618.47345698,0.00013699,2]
[405032352,1770752013895,454.65002405,0.000189,2]
[405032355,1770752138235,5000.0,0.00024937,2]
[405032356,1770752153391,5000.0,0.00025,2]
[405032357,1770752175884,3457.25492602,0.00025,2]
[405032358,1770752183712,2080.9069575,0.00025,2]
[405032573,1770752748146,-3000.0,0.00025189,2]
[405032574,1770752748168,-150.0,0.00025193,2]
[405032575,1770752748188,-1200.0,0.00025566,2]
[405032576,1770752748210,-5597.15829053,0.00025567,2]
[405032577,1770752748230,-300.0,0.00026574,2]
[405032578,1770752748251,-177.0,0.00027193,2]
[405032579,1770752748271,-420.0,0.00028742,2]
[405032580,1770752748292,-170.0,0.00029123,14]
[405032581,1770752748313,-204.0,0.00029193,2]
[405032582,1770752748336,-300.0,0.00031087,2]
[405032583,1770752748356,-6177.66710747,0.00031192,2]
[405032586,1770752837229,-5566.14909373,0.00025583,2]
[405032587,1770752837251,-254.52989371,0.0002589,2]
[405032588,1770752837273,-360.0,0.00031191,2]
[405032589,1770752837293,-29457.69951393,0.00031192,2]
[405032590,1770752837312,-500.0,0.00031192,2]
[405032591,1770752837333,-304.12642921,0.00031192,2]
[405032592,1770752837354,-500.0,0.00031192,2]
[405032593,1770752837373,-438.43762904,0.00031192,2]
[405032594,1770752837395,-500.0,0.00031192,2]
[405032595,1770752837416,-475.274526,0.00031551,10]
[405032596,1770752837437,-421.72730467,0.00032999,7]
[405032597,1770752837457,-3407.06857037,0.00033,2]
[405032598,1770752837478,-162.96164284,0.000332,117]
[405032599,1770752837498,-427.702721,0.00033345,2]
[405032600,1770752837516,-500.0,0.00033516,7]
[405032601,1770752837535,-500.0,0.00033527,7]
[405032602,1770752837556,-500.0,0.00033677,7]
[405032603,1770752837578,-500.0,0.00033702,7]
[405032604,1770752837600,-495.85,0.00034101,7]
[405032605,1770752837622,-500.0,0.00034488,7]
[405032606,1770752837641,-427.702721,0.00034749,2]
[405032607,1770752837661,-705.6286368,0.00034783,2]
[405032608,1770752837681,-2504.5706293,0.00034783,2]
[405032609,1770752837705,-1346.82221584,0.0003499,2]
[405032610,1770752837725,-256.06,0.0003499,3]
[405032611,1770752837745,-768.2,0.0003499,3]
[405032612,1770752837765,-675.74,0.0003499,3]
[405032613,1770752837784,-229.81,0.0003499,10]
[405032614,1770752837805,-191.51,0.0003499,10]
[405032615,1770752837825,-216.85945079,0.00034999,7]
[405032616,1770752837844,-500.0,0.00034999,7]
[405032617,1770752837865,-500.0,0.00034999,7]
[405032618,1770752837887,-500.0,0.00034999,7]
[405032619,1770752837909,-500.0,0.00034999,7]
[405032620,1770752837930,-500.0,0.00034999,7]
[405032621,1770752837951,-500.0,0.00034999,7]
[405032622,1770752837975,-500.0,0.00034999,7]
[405032623,1770752837998,-500.0,0.00034999,7]
[405032624,1770752838020,-500.0,0.00034999,7]
[405032625,1770752838042,-500.0,0.00034999,7]
[405032626,1770752838064,-500.0,0.00034999,7]
[405032627,1770752838086,-389.07933548,0.00034999,7]
[405032628,1770752838107,-500.0,0.00034999,7]
[405032629,1770752838128,-500.0,0.00034999,7]
[405032630,1770752838149,-500.0,0.00034999,7]
[405032631,1770752838169,-500.0,0.00034999,7]
[405032632,1770752838191,-500.0,0.00034999,7]
[405032633,1770752838214,-500.0,0.00034999,7]
[405032634,1770752838240,-500.0,0.00034999,7]
[405032635,1770752838264,-500.0,0.00034999,7]
[405032636,1770752838287,-500.0,0.00034999,7]
[405032637,1770752838310,-500.0,0.00034999,7]
[405032638,1770752838335,-500.0,0.00034999,7]
[405032639,1770752838355,-500.0,0.00034999,7]
[405032640,1770752838381,-500.0,0.00034999,7]
[405032641,1770752838404,-500.0,0.00034999,7]
[405032642,1770752838429,-500.0,0.00034999,7]
[405032643,1770752838451,-500.0,0.00034999,7]
[405032644,1770752838475,-303.57381262,0.00034999,7]
[405032645,1770752838494,-500.0,0.00034999,7]
[405032646,1770752838518,-500.0,0.00034999,7]
[405032647,1770752838542,-500.0,0.00034999,7]
[405032648,1770752838562,-500.0,0.00034999,7]
[405032649,1770752838584,-500.0,0.00034999,7]
[405032650,1770752838606,-500.0,0.00034999,7]
[405032651,1770752838629,-500.0,0.00034999,7]
[405032652,1770752838650,-500.0,0.00034999,7]
[405032653,1770752838671,-500.0,0.00034999,7]
[405032654,1770752838695,-500.0,0.00034999,7]
[405032655,1770752838718,-500.0,0.00034999,7]
[405032656,1770752838741,-500.0,0.00034999,7]
[405032657,1770752838761,-500.0,0.00034999,7]
[405032658,1770752838782,-500.0,0.00034999,7]
[405032659,1770752838803,-500.0,0.00034999,7]
[405032660,1770752838823,-452.95749151,0.00034999,7]
[405032661,1770752838843,-500.0,0.00034999,7]
[405032662,1770752838862,-500.0,0.00034999,7]
[405032663,1770752838882,-500.0,0.00034999,7]
[405032664,1770752838902,-500.0,0.00034999,7]
[405032665,1770752838922,-500.0,0.00034999,7]
[405032666,1770752838941,-500.0,0.00034999,7]
[405032667,1770752838961,-500.0,0.00034999,7]
[405032668,1770752839062,-500.0,0.00034999,7]
[405032669,1770752839089,-500.0,0.00034999,7]
[405032670,1770752839111,-500.0,0.00034999,7]
[405032671,1770752839132,-500.0,0.00034999,7]
[405032672,1770752839152,-500.0,0.00034999,7]
[405032673,1770752839173,-500.0,0.00034999,7]
[405032674,1770752839193,-500.0,0.00034999,7]
[405032675,1770752839213,-500.0,0.00034999,7]
[405032676,1770752839235,-500.0,0.00034999,7]
[405032677,1770752839254,-500.0,0.00034999,7]
[405032678,1770752839272,-211.23514643,0.00034999,7]
[405032679,1770752839294,-499.99999999,0.00034999,7]